[Event "German Masters 2022"]
[Site "Magdeburg"]
[Date "2022.08.23"]
[Round "8.2"]
[White "Koelle, Tobias"]
[Black "Svane, Rasmus"]
[Result "1/2-1/2"]
[ECO "E10"]
[WhiteElo "2436"]
[BlackElo "2649"]
[Annotator "TA"]
[PlyCount "181"]
[EventDate "2022.08.16"]
[EventType "tourn"]
[EventCountry "GER"]
[SourceTitle "playchess.com"]
[Source "ChessBase"]
[SourceQuality "1"]
[TimeControl "40/5400+30:1800+30"]

{[%evp 9,181,9,24,23,23,-8,-8,-10,-6,0,0,-39,-17,-16,0,0,2,13,18,0,10,0,18,0,5,8,38,20,19,24,23,16,42,42,53,50,45,38,49,26,31,33,33,29,49,56,68,72,77,70,74,70,74,80,85,79,90,90,114,83,76,62,89,79,88,29,37,48,31,15,14,8,8,8,13,0,0,0,0,0,0,0,0,0,0,0,0,0,0,0,0,0,0,0,0,0,0,0,0,-8,0,0,-1,-8,-8,-8,-8,-8,-8,-8,-8,-8,-8,-8,-8,-8,-8,-8,-8,-8,-8,-8,-8,-8,-8,-8,-8,-8,-8,-8,-8,-8,-8,-8,0,0,0,-8,-8,-8,-8,-8,-8,-8,-8,-8,-8,-8,-8,-8,-8,-8,-8,-8,-8,-8,-8,-8,-8,-8,0,-8,-8,-8,-8,-8,-8,-8,0,0,0,-8,0,-8]} 1. d4 {[%emt 0:00:03]} Nf6 {[%emt 0:00:22]} 2. c4 {[%emt 0:00:04]} e6 {[%emt 0:00:06]} 3. Nf3 {[%emt 0:00:06]} h6 {[%emt 0:00:08]} 4. Nc3 {[%emt 0:00:35]} Bb4 {[%emt 0:00:08]} 5. g3 {[%emt 0:11:16]} Bxc3+ {[%emt 0:01:43]} 6. bxc3 {[%emt 0:00:14] E10: Blumenfeld Gambit.} b6 {[%emt 0:00:03]} 7. Bg2 {[%emt 0:01:17]} (7. Nd2 $5 {[%cal Rf1g2]}) 7... Bb7 {[%emt 0:00:08]} 8. O-O {[%emt 0:01:02]} O-O {[%emt 0:00:14]} 9. Re1 {[%emt 0:04:45]} d6 {[%emt 0:05:06][%cal Bd7d6,Bd6d5][%mdl 32]} 10. Nh4 {[%emt 0:06:32]} Bxg2 {[%emt 0:00:53]} 11. Nxg2 {[%emt 0:00:29]} d5 {[%emt 0:22:27] [#]} 12. Qd3 $146 {[%emt 0:13:42]} ({Predecessor:} 12. f3 dxc4 13. Qa4 Qd5 14. Ne3 Qc6 15. Qxc4 b5 16. Qb3 Nbd7 17. c4 Rfb8 18. Bd2 {0-1 (48) Perdomo,L (2459)-Domingo Nunez,R (2365) Braganca 2021}) 12... c6 {[%emt 0:15:53][%cal Bc7c6,Bc6c5][%mdl 32]} 13. a4 {[%emt 0:07:15]} Re8 {[%emt 0:05:18]} 14. Bf4 {[%emt 0:04:46]} Nbd7 {[%emt 0:03:26]} 15. cxd5 {[%emt 0:03:37]} Nxd5 {[%emt 0:10:25]} 16. Bc1 {[%emt 0:03:14]} c5 {[%emt 0:01:25]} 17. e4 {[%emt 0:02:00]} N5f6 {[%emt 0:01:02][%cal Od7e5]} 18. Bb2 {[%emt 0:01:31]} Rc8 {[%emt 0:04:47]} 19. Qe2 {[%emt 0:08:53]} Qc7 {[%emt 0:01:42]} 20. f3 {[%emt 0:00:53]} cxd4 {[%emt 0:10:43]} 21. cxd4 {[%emt 0:00:03]} Qc2 {[%emt 0:00:28]} 22. Ne3 {[%emt 0:03:31]} Qxe2 {[%emt 0:01:18]} 23. Rxe2 {[%emt 0:00:02]} Rc7 {[%emt 0:01:33]} 24. Rc1 {[%emt 0:03:12]} Rxc1+ {[%emt 0:01:25]} 25. Bxc1 {[%emt 0:00:02]} Rc8 {[%emt 0:02:05]} 26. Bb2 {[%emt 0:00:25]} a6 {[%emt 0:05:14]} 27. Kf2 {[%emt 0:00:23]} b5 {[%emt 0:00:56]} 28. axb5 {[%emt 0:01:24]} axb5 {[%emt 0:00:02]} 29. Rc2 {[%emt 0:01:53]} Rxc2+ {[%emt 0:01:11]} 30. Nxc2 $14 {[%emt 0:00:07][%mdl 4096] Endgame KBN-KNN} Ne8 {[%emt 0:02:00]} 31. Bc3 {[%emt 0:04:03]} Nc7 {[%emt 0:01:25]} 32. Ke2 {[%emt 0:03:39]} Nb8 {[%emt 0:01:26]} 33. Ba5 {[%emt 0:04:10]} Nca6 {[%emt 0:00:07]} 34. Kd3 {[%emt 0:01:17] White is more active.} Nc6 {[%emt 0:00:40]} 35. Bd2 {[%emt 0:00:40]} Kf8 {[%emt 0:00:19]} 36. Na3 {[%emt 0:02:27]} b4 {[%emt 0:01:08]} 37. Nc2 {[%emt 0:03:44]} ({White should try} 37. Nc4 $16) 37... b3 $11 {[%emt 0:00:06]} 38. Na3 {[%emt 0:00:07]} e5 $1 {[%emt 0:00:39]} 39. dxe5 {[%emt 0:04:57]} Nxe5+ {[%emt 0:00:18] The position is equal.} 40. Ke2 {[%emt 0:00:56]} f6 {[%emt 0:01:32]} 41. Bc3 {[%emt 0:09:26]} Kf7 {[%emt 0:03:16]} 42. Bxe5 {[%emt 0:05:37]} fxe5 {[%emt 0:00:06] KN-KN} 43. Kd3 {[%emt 0:00:46]} Nc5+ {[%emt 0:08:13]} 44. Kc3 {[%emt 0:01:53]} Ne6 {[%emt 0:00:41]} 45. Nc4 {[%emt 0:00:54]} Kf6 {[%emt 0:00:27]} 46. Nd2 {[%emt 0:01:16]} Nd4 {[%emt 0:00:17]} 47. f4 {[%emt 0:02:05]} Ne2+ {[%emt 0:02:30]} 48. Kd3 {[%emt 0:02:13]} Nc1+ {[%emt 0:00:11]} 49. Kc3 {[%emt 0:01:34]} exf4 {[%emt 0:01:02]} 50. gxf4 {[%emt 0:00:11]} Ne2+ {[%emt 0:00:08]} 51. Kd3 {[%emt 0:00:51]} Nxf4+ {[%emt 0:00:58]} 52. Ke3 $1 {[%emt 0:02:03]} g5 {[%emt 0:11:42] [#] White must now prevent ...b2.} 53. Nxb3 {[%emt 0:00:07]} Ng6 {[%emt 0:00:28]} 54. Nd2 {[%emt 0:00:24]} Ne5 {[%emt 0:01:23]} 55. Kf2 {[%emt 0:01:48]} h5 {[%emt 0:01:18][%cal Bh6h5,Bh5h4][%mdl 32]} 56. Nf1 {[%emt 0:01:03]} Nc4 {[%emt 0:02:17]} 57. Kf3 {[%emt 0:03:22]} (57. Ne3 Nd2 58. Ke2 Nxe4 $17) 57... Ke5 {[%emt 0:00:29]} 58. Ng3 {[%emt 0:01:11]} Nd2+ {[%emt 0:00:54]} 59. Kg2 {[%emt 0:02:31]} h4 {[%emt 0:00:06]} 60. Ne2 {[%emt 0:00:31]} Kxe4 {[%emt 0:00:48]} ({Much worse is} 60... Nxe4 $6 61. Kf3 $17) 61. Nc3+ {[%emt 0:00:08]} Kf5 {[%emt 0:01:03]} 62. h3 {[%emt 0:00:33]} Nc4 {[%emt 0:00:25]} 63. Nd5 {[%emt 0:00:28]} Ne5 {[%emt 0:00:49]} 64. Kf2 {[%emt 0:01:30]} Ke4 {[%emt 0:00:53]} 65. Nf6+ {[%emt 0:00:30]} Kf4 {[%emt 0:00:32]} 66. Nd5+ {[%emt 0:00:07]} Kf5 {[%emt 0:00:04]} 67. Kg2 {[%emt 0:00:16]} Ke4 {[%emt 0:00:41]} 68. Nf6+ $1 {[%emt 0:00:13]} Ke3 {[%emt 0:00:12]} 69. Nd5+ {[%emt 0:00:18]} Ke2 {[%emt 0:00:46]} 70. Nc3+ $1 {[%emt 0:00:19]} Kd3 {[%emt 0:00:08]} 71. Nd5 {[%emt 0:00:12]} Ke4 {[%emt 0:00:24]} 72. Nf6+ {[%emt 0:00:32]} Kf5 {[%emt 0:00:09]} 73. Nd5 {[%emt 0:00:06]} Nc6 {[%emt 0:00:36]} 74. Kf3 {[%emt 0:00:49]} Nd4+ {[%emt 0:00:07]} 75. Ke3 {[%emt 0:01:18]} Ne6 {[%emt 0:02:21] [#] Hoping for ...Ke5.} 76. Kf3 {[%emt 0:00:25]} Nf4 {[%emt 0:00:21]} 77. Ne3+ {[%emt 0:00:26]} Kg6 {[%emt 0:00:05]} 78. Kg4 {[%emt 0:00:05]} Nd3 {[%emt 0:00:16][%cal Rd3e5]} 79. Kf3 {[%emt 0:00:29]} Kf6 {[%emt 0:00:39]} 80. Nc4 {[%emt 0:01:22]} Kf5 {[%emt 0:01:01]} 81. Ne3+ {[%emt 0:00:27]} Kg6 {[%emt 0:00:03]} 82. Nd5 {[%emt 0:00:55]} Ne5+ {[%emt 0:00:28]} 83. Ke4 {[%emt 0:00:24]} Nc6 {[%emt 0:01:03]} 84. Kf3 {[%emt 0:00:25]} Ne5+ {[%emt 0:00:48]} 85. Ke4 {[%emt 0:00:10]} Nc4 {[%emt 0:00:25]} 86. Kf3 {[%emt 0:00:29]} Nd6 {[%emt 0:00:33]} 87. Kg4 {[%emt 0:00:47]} Nf5 {[%emt 0:00:30]} 88. Kf3 {[%emt 0:00:16]} Nd4+ {[%emt 0:00:28]} 89. Kg4 {[%emt 0:00:20]} Nc6 {[%emt 0:00:07][%cal Rc6e5]} 90. Kf3 {[%emt 0:00:08]} Ne5+ {[%emt 0:00:44]} 91. Ke4 {Weighted Error Value: White=0.07 (flawless) /Black=0.05 (flawless)} 1/2-1/2

[Event "German Masters 2022"]
[Site "Magdeburg"]
[Date "2022.08.23"]
[Round "8.3"]
[White "Engel, Luis"]
[Black "Huschenbeth, Niclas"]
[Result "0-1"]
[ECO "C77"]
[WhiteElo "2558"]
[BlackElo "2610"]
[Annotator "TA"]
[PlyCount "102"]
[EventDate "2022.08.16"]
[EventType "tourn"]
[EventCountry "GER"]
[SourceTitle "playchess.com"]
[Source "ChessBase"]
[SourceQuality "1"]
[TimeControl "40/5400+30:1800+30"]

{[%evp 12,102,7,8,21,15,23,4,24,0,0,0,12,0,0,0,0,0,0,0,0,-2,-15,0,0,-12,-18,-105,-104,-183,-193,-189,-170,-205,-206,-247,-295,-293,-259,-249,-161,-175,-173,-304,-304,-423,-436,-593,-605,-590,-591,-551,-714,-697,-690,-713,-700,-707,-647,-1090,-1076,-1042,-1035,-1089,-1029,-937,0,-1104,-1127,-1111,-1046,-1123,-1114,-1288,-1215,-1385,-1422,-1958,-2192,-2001,-1642,-29954,-29954,-29957,-29956,-29975,-29976,-29976,-29976,-29983,-29984,-29988,-29989]} 1. e4 {[%emt 0:00:02]} e5 {[%emt 0:00:35]} 2. Nf3 {[%emt 0:00:05]} Nc6 {[%emt 0:00:05]} 3. Bb5 {[%emt 0:00:05]} a6 {[%emt 0:00:04]} 4. Ba4 {[%emt 0:00:04]} Nf6 {[%emt 0:00:05]} 5. d3 {[%emt 0:00:04]} Bc5 {[%emt 0:00:17]} 6. c3 {[%emt 0:02:06]} d6 {[%emt 0:00:05]} 7. O-O {[%emt 0:00:31]} Ba7 {[%emt 0:00:03] C78: Ruy Lopez: Archangelsk and Möller Defences.} 8. Nbd2 {[%emt 0:00:54][%cal Bb1d2,Bd2f1,Bf1g3][%mdl 32] has lost popularity (8.Re1).} O-O {[%emt 0:00:33]} 9. h3 {[%emt 0:00:49]} Ne7 {[%emt 0:00:36] The position is equal.} 10. Re1 {[%emt 0:00:43]} Ng6 {[%emt 0:00:05][%cal Oc8h3]} 11. Nf1 {[%emt 0:00:20]} d5 {[%emt 0:01:06]} 12. exd5 {[%emt 0:20:15]} Nxd5 {[%emt 0:00:06]} 13. Ng3 {[%emt 0:00:06]} c6 {[%emt 0:00:32]} 14. d4 {[%emt 0:09:16]} exd4 {[%emt 0:00:08]} 15. Nxd4 {[%emt 0:00:05]} Be6 {[%emt 0:01:51]} 16. Bc2 {[%emt 0:03:28]} Qc7 {[%emt 0:03:53]} 17. Bg5 {[%emt 0:12:44]} Rae8 {[%emt 0:17:54] [#]} 18. Qd2 $146 {[%emt 0:05:27]} ({Predecessor:} 18. Qd3 Ndf4 19. Qd2 Bd5 20. Bxg6 Nxg6 21. Ndf5 f6 22. Be3 Bxe3 23. Rxe3 Re5 24. Rxe5 fxe5 {½-½ (32) Elburg,J (2312)-Paine,K (2351) ICCF email 2019}) 18... h6 {[%emt 0:24:54]} 19. Bxg6 {[%emt 0:09:56]} (19. Nxe6 Rxe6 20. Rxe6 fxe6 $17) (19. Be3 $11 {remains equal.} Nxe3 20. Rxe3) 19... fxg6 $17 {[%emt 0:07:43] Black continues to play with concentration.} (19... Bxd4 $6 20. Qxd4 fxg6 21. Bd2 $11) 20. Rxe6 {[%emt 0:00:06]} (20. Be3 $17 Bf7 21. a3) 20... Rxe6 $19 {[%emt 0:01:07]} 21. Nxe6 {[%emt 0:00:05]} Rxf2 {[%emt 0:00:13]} 22. Qd4 {[%emt 0:00:44]} (22. Qxd5 {is a self mate.} Qxg3 23. Qd8+ Kh7) 22... Rf1+ $1 {[%emt 0:06:14]} 23. Rxf1 {[%emt 0:06:56]} Bxd4+ {[%emt 0:00:05]} 24. cxd4 {[%emt 0:01:10]} Qxg3 {[%emt 0:01:50]} 25. Bxh6 {[%emt 0:00:23] [#] Rf8+ is the strong threat.} Kh7 {[%emt 0:04:50] Dancing on a razor blade.} ({Stronger than} 25... gxh6 26. Rf8+ Kh7 27. Rf7+ Kh8 28. Rf8+ Kh7 29. Rf7+ Kh8 30. Rf8+ Kh7 $11) 26. Bd2 {[%emt 0:05:52]} Qd3 {[%emt 0:02:22]} 27. Rf2 {[%emt 0:00:30]} (27. Bc1 $142) 27... Nf6 {[%emt 0:03:15]} ({Don't go for} 27... Qb1+ $2 28. Kh2 Qxb2 29. Be1 $19) 28. Bg5 {[%emt 0:02:14]} Qb1+ {[%emt 0:12:42]} 29. Kh2 {[%emt 0:00:05]} Qe1 {[%emt 0:01:52]} 30. Nf8+ {[%emt 0:00:07]} Kg8 {[%emt 0:00:03]} 31. Bh4 {[%emt 0:00:06]} g5 {[%emt 0:05:00][%cal Bg6g5,Bg5h4][%mdl 32]} 32. Rxf6 {[%emt 0:00:06]} gxh4 {[%emt 0:01:38][%mdl 4096] Endgame KQ-KRN} 33. Rf5 {[%emt 0:00:49]} Qe3 {[%emt 0:01:33]} 34. b3 {[%emt 0:04:38]} Qxd4 {[%emt 0:00:37]} 35. Ng6 {[%emt 0:01:22] [#] White threatens Ne7+ and mate.} Qd6+ {[%emt 0:01:25]} 36. Ne5 {[%emt 0:00:05]} c5 {[%emt 0:02:13]} 37. Kh1 {[%emt 0:02:20]} Qd1+ {[%emt 0:00:03]} 38. Kh2 {[%emt 0:00:05]} Qd6 {[%emt 0:00:03]} 39. Kh1 $1 {[%emt 0:00:04]} b5 {[%emt 0:01:19]} 40. Rg5 {[%emt 0:01:31]} Qd2 {[%emt 0:00:36][%csl LRa2,LRg5]} 41. Nf3 {[%emt 0:30:37]} Qxa2 {[%emt 0:02:32]} 42. Rxc5 {[%emt 0:00:00]} Qxb3 {[%emt 0:00:14] White must now prevent ...Qd1+.} 43. Rc8+ {[%emt 0:00:00]} Kh7 {[%emt 0:00:31] Hoping for ...Qd1+.} 44. Rc6 {[%emt 0:00:00]} Qd1+ {[%emt 0:12:31]} 45. Kh2 {[%emt 0:00:00]} Qd8 {[%emt 0:00:33]} 46. Rxa6 {[%emt 0:00:00]} b4 {[%emt 0:00:12][%cal Bb5b4,Bb4b3,Bb3b2][%mdl 32] Black mates.} 47. Ra2 {[%emt 0:00:00]} b3 {[%emt 0:00:34]} 48. Rf2 {[%emt 0:00:00]} Qc7+ {[%emt 0:01:16]} 49. Kg1 {[%emt 0:00:00]} Qc1+ {[%emt 0:00:18]} 50. Kh2 {[%emt 0:00:00]} b2 {[%emt 0:00:49]} 51. Nd2 {[%emt 0:00:00]} Qe1 {[%emt 0:00:27] Weighted Error Value: White=0.57/Black=0.20 (precise)} 0-1

[Event "German Masters 2022"]
[Site "Magdeburg"]
[Date "2022.08.23"]
[Round "8.4"]
[White "Fridman, Daniel"]
[Black "Braun, Arik"]
[Result "1/2-1/2"]
[ECO "A13"]
[WhiteElo "2599"]
[BlackElo "2594"]
[Annotator "TA"]
[PlyCount "56"]
[EventDate "2022.08.16"]
[EventType "tourn"]
[EventCountry "GER"]
[SourceTitle "playchess.com"]
[Source "ChessBase"]
[SourceQuality "1"]
[TimeControl "40/5400+30:1800+30"]

{[%evp 9,56,-4,3,-28,-11,-11,3,0,0,2,7,0,0,0,0,0,0,-8,0,0,0,0,0,0,0,0,0,0,0,0,0,-9,-8,-9,0,-10,-8,-4,-4,-11,0,-7,0,-11,0,-6,0,-10,0]} 1. c4 {[%emt 0:02:28]} e6 {[%emt 0:00:21]} 2. g3 {[%emt 0:00:12]} d5 {[%emt 0:04:12]} 3. Nf3 {[%emt 0:00:27][%cal Bg1f3,Bf3d4,Bd4c6][%mdl 32]} dxc4 {[%emt 0:03:26]} 4. Qa4+ {[%emt 0:00:07]} Nd7 {[%emt 0:01:12]} 5. Qxc4 {[%emt 0:00:58]} b6 {[%emt 0:03:16] [#]} 6. Nd4 $146 {[%emt 0:12:01] aiming for Bg2. A13: English Opening: 1...e6.} ({Predecessor:} 6. d4 Bb7 7. Nc3 a6 8. a4 Ngf6 9. Bg2 c5 10. O-O Rc8 11. Bf4 Be7 12. Rad1 O-O 13. Ne5 cxd4 14. Qxd4 Bxg2 15. Kxg2 Nxe5 16. Bxe5 Qxd4 {½-½ (16) Hillarp Persson,T (2503)-Speelman,J (2511) St Clement Bay 2017}) 6... Bb7 {[%emt 0:10:43] Prevents Bg2.} (6... Bc5 $5 {[%cal Rd7e5]} 7. Nf3 (7. Bg2 Ne5 $15) 7... Bb7 $11) 7. Nc6 {[%emt 0:02:13] The position is equal.} Qg5 {[%emt 0:10:36] [#] Threatens to win with ...b5.} 8. Bg2 $1 {[%emt 0:03:26] Hoping for d4.} Qc5 {[%emt 0:03:45]} 9. Qxc5 {[%emt 0:01:36]} Bxc5 {[%emt 0:00:47]} 10. O-O {[%emt 0:00:11]} Ne7 {[%emt 0:02:15]} 11. Nxe7 {[%emt 0:00:06]} Bxg2 {[%emt 0:00:05]} 12. Kxg2 {[%emt 0:00:06] [#] Strongly threatening Nc6.} Bxe7 {[%emt 0:00:28]} 13. Nc3 {[%emt 0:01:44]} c5 {[%emt 0:05:16]} 14. Rd1 {[%emt 0:01:58]} O-O-O {[%emt 0:01:24]} 15. d4 {[%emt 0:04:51]} cxd4 {[%emt 0:01:40]} 16. Rxd4 {[%emt 0:00:45]} Ne5 {[%emt 0:00:38]} 17. Be3 {[%emt 0:02:23]} Kb7 {[%emt 0:01:19]} 18. Rad1 {[%emt 0:06:47]} Nc6 {[%emt 0:01:10]} 19. Rd7+ {[%emt 0:01:02]} Kc8 {[%emt 0:01:27]} 20. R7d2 {[%emt 0:02:40]} Rxd2 {[%emt 0:00:47]} 21. Rxd2 {[%emt 0:00:06]} Rd8 {[%emt 0:00:11]} 22. Kf1 {[%emt 0:03:02]} Rxd2 {[%emt 0:00:20]} 23. Bxd2 $11 {[%emt 0:00:06][%mdl 4096] Endgame KBN-KBN} Kd7 {[%emt 0:00:09]} 24. Ke1 {[%emt 0:00:07]} Bf8 {[%emt 0:00:17]} 25. Kd1 {[%emt 0:00:06]} Be7 {[%emt 0:00:06]} 26. Ke1 {[%emt 0:00:04]} Bf8 {[%emt 0:00:03]} 27. Kd1 {[%emt 0:00:06]} Be7 {[%emt 0:00:04]} 28. Ke1 {[%emt 0:00:07]} Bf8 {[%emt 0:00:04] An interesting draw.  Weighted Error Value: White=0.04 (flawless) /Black=0.04 (flawless)} 1/2-1/2

[Event "German Masters 2022"]
[Site "Magdeburg"]
[Date "2022.08.23"]
[Round "8.5"]
[White "Kollars, Dmitrij"]
[Black "Svane, Frederik"]
[Result "1/2-1/2"]
[ECO "A28"]
[WhiteElo "2648"]
[BlackElo "2521"]
[Annotator "TA"]
[PlyCount "152"]
[EventDate "2022.08.16"]
[EventType "tourn"]
[EventCountry "GER"]
[SourceTitle "playchess.com"]
[Source "ChessBase"]
[SourceQuality "1"]
[TimeControl "40/5400+30:1800+30"]

{[%evp 9,152,0,10,5,13,12,14,0,9,0,7,6,9,-9,15,6,30,1,17,7,27,23,24,22,34,36,41,17,24,0,39,0,30,31,31,31,51,51,51,51,56,53,56,56,56,48,47,45,45,7,11,33,155,147,138,148,159,159,150,137,128,106,127,123,151,122,154,149,153,161,160,156,156,126,116,123,123,121,108,31,58,31,31,31,27,8,8,8,8,0,0,0,0,0,0,8,8,8,8,0,0,0,0,0,0,0,0,0,0,0,0,0,0,0,0,0,0,0,0,0,64,0,0,0,0,0,0,0,0,0,0,0,0,0,0,0,0,0,0,0,0,0,0,0,0]} 1. c4 {[%emt 0:05:24]} Nf6 {[%emt 0:00:06]} 2. Nc3 {[%emt 0:00:10]} e5 {[%emt 0:00:07]} 3. Nf3 {[%emt 0:00:35]} Nc6 {[%emt 0:00:07]} 4. e4 {[%emt 0:00:49]} Bb4 {[%emt 0:00:10]} 5. d3 {[%emt 0:00:09]} d6 {[%emt 0:00:33]} 6. a3 {[%emt 0:00:19] A28: English Opening: Four Knights Variation.} Ba5 {[%emt 0:00:06]} 7. Be2 {[%emt 0:03:41]} O-O {[%emt 0:02:09]} 8. O-O {[%emt 0:07:03]} h6 {[%emt 0:03:36] [#]} 9. Na4 $146 {[%emt 0:04:02]} ({Predecessor:} 9. b4 Bb6 10. Na4 Bg4 11. Nxb6 axb6 12. Bb2 Bxf3 13. Bxf3 Re8 14. g3 Nd7 15. Bg2 {1-0 (27) Matlakov,M (2698)-Hosseinzadeh,N (2217) Chess.com INT 2020}) 9... Bb6 {[%emt 0:07:39]} 10. Nxb6 {[%emt 0:03:36]} axb6 {[%emt 0:00:14]} 11. h3 {[%emt 0:01:54]} Ne7 {[%emt 0:06:26]} 12. b4 {[%emt 0:07:39]} c5 {[%emt 0:08:38]} 13. Be3 {[%emt 0:02:45]} Be6 {[%emt 0:02:26]} 14. Nd2 {[%emt 0:07:39]} Ng6 {[%emt 0:11:35]} 15. Kh2 {[%emt 0:05:18]} Nd7 {[%emt 0:04:35]} 16. Bg4 {[%emt 0:01:16]} Ra7 {[%emt 0:10:05]} 17. b5 {[%emt 0:08:03]} Nf6 {[%emt 0:06:32]} 18. g3 {[%emt 0:07:57]} Qd7 {[%emt 0:13:53][%cal Re6g4]} 19. f3 {[%emt 0:06:14]} Raa8 {[%emt 0:00:49]} 20. a4 {[%emt 0:01:08]} Nh7 {[%emt 0:01:28]} 21. Bxe6 {[%emt 0:04:17]} Qxe6 {[%emt 0:03:00]} 22. g4 {[%emt 0:00:40]} Nf4 {[%emt 0:00:32]} 23. Nb1 $1 {[%emt 0:01:05][%cal Bd2b1,Bb1c3,Bc3e2,Be2f4][%mdl 32]} (23. Bxf4 exf4 24. Nb1 Qe5 $11) 23... g5 {[%emt 0:01:55]} 24. Nc3 {[%emt 0:00:22]} Nf6 {[%emt 0:00:29]} 25. Bxf4 {[%emt 0:04:53]} exf4 {[%emt 0:00:32]} 26. h4 {[%emt 0:03:34]} Qe5 {[%emt 0:01:01]} 27. Qd2 {[%emt 0:00:15]} h5 {[%emt 0:04:37]} 28. hxg5 $1 {[%emt 0:00:46]} Qxg5 {[%emt 0:01:13]} 29. Ne2 {[%emt 0:02:07]} Nxg4+ $1 {[%emt 0:02:48]} 30. Kh3 {[%emt 0:06:59]} Kh7 {[%emt 0:05:06]} 31. Qxf4 $16 {[%emt 0:00:05] The board is on fire.} (31. fxg4 $2 Qxg4+ 32. Kh2 Rg8 33. Nxf4 Qh4+ 34. Nh3 Rg3 35. Rxf7+ Kg8 $19) 31... Qxf4 {[%emt 0:00:08]} 32. Nxf4 {[%emt 0:00:01]} Nf6 {[%emt 0:00:20]} 33. Rg1 {[%emt 0:00:44]} Kh6 {[%emt 0:00:47] Prevents Rg5.} 34. Rg2 {[%emt 0:01:11] And now Rag1 would win.} Rg8 {[%emt 0:00:11]} 35. Rd2 {[%emt 0:02:34]} Rg5 {[%emt 0:00:47]} 36. d4 {[%emt 0:00:40]} Rag8 {[%emt 0:00:39] [#] Threatens to win with ...Rg3+.} 37. Kh2 {[%emt 0:00:06] Hoping for dxc5. Active counter play!} Nd7 {[%emt 0:02:18]} 38. Rf1 {[%emt 0:01:10]} (38. dxc5 Ne5 39. Rxd6+ Kh7 $16) 38... Rd8 {[%emt 0:00:41]} 39. dxc5 {[%emt 0:01:08]} Nxc5 {[%emt 0:00:08]} 40. Rfd1 {[%emt 0:00:05]} Nxa4 {[%emt 0:00:51]} 41. Rxd6+ {[%emt 0:30:18]} Rxd6 {[%emt 0:30:04]} 42. Rxd6+ {[%emt 0:00:05][%mdl 4096] Endgame KRN-KRN} Kg7 {[%emt 0:01:02]} 43. Kh3 {[%emt 0:00:00]} Rc5 {[%emt 0:00:00]} 44. Nd5 {[%emt 0:00:00]} ({White should try} 44. Kh4 $16) 44... Rxc4 {[%emt 0:00:00]} 45. Nxb6 {[%emt 0:00:00]} (45. Kh4 $5 {[%cal Rd5e3]}) 45... Nxb6 {[%emt 0:00:00]} 46. Rxb6 $14 {[%emt 0:00:00] KR-KR} Rc3 {[%emt 0:00:00]} (46... Rc7 47. Kh4 $16) 47. Kg3 {[%emt 0:00:00]} h4+ $1 {[%emt 0:00:00]} 48. Kxh4 {[%emt 0:00:00]} Rxf3 {[%emt 0:00:00]} 49. Kg4 {[%emt 0:00:00]} Rf1 {[%emt 0:00:00]} 50. Kg5 {[%emt 0:00:00]} f6+ $1 {[%emt 0:00:00]} 51. Kg4 {[%emt 0:00:00]} Kf7 {[%emt 0:00:00]} (51... Rg1+ 52. Kf5 Rg5+ 53. Ke6 $16 (53. Kf4 Kf7 $14)) 52. Rxb7+ {[%emt 0:01:13]} Ke6 {[%emt 0:00:00]} 53. Rb8 {[%emt 0:01:30]} Rb1 {[%emt 0:00:00]} 54. Kf4 {[%emt 0:00:11]} Rb3 {[%emt 0:00:17]} 55. Rb6+ {[%emt 0:00:42]} Ke7 {[%emt 0:00:27]} 56. Rb8 {[%emt 0:01:33]} ({Don't do} 56. Kf5 Rf3+ 57. Kg4 Re3 $14) 56... Ke6 {[%emt 0:00:34]} 57. b6 {[%emt 0:00:27] [#] b7 would kill now.} Kf7 $1 {[%emt 0:01:33]} 58. Kf5 {[%emt 0:01:14]} Rb5+ {[%emt 0:00:21]} 59. Kg4 {[%emt 0:00:04]} Rb3 {[%emt 0:02:10]} 60. Kf4 {[%emt 0:00:12]} Kg6 {[%emt 0:00:47]} 61. Rb7 {[%emt 0:00:09]} (61. b7 Kg7 62. Kg4 Kh7 $18) 61... Rb5 {[%emt 0:00:32]} 62. Rb8 {[%emt 0:01:16] Black must now prevent Ke3.} Rb3 {[%emt 0:00:04]} 63. Kg4 {[%emt 0:00:03]} ({Not} 63. b7 Kg7 64. Kf5 Rb6 $18) 63... Kf7 {[%emt 0:00:17]} 64. Kf4 {[%emt 0:01:28]} ({Better is} 64. e5 $11 fxe5 65. b7 (65. Kf5 Ke7 $11)) 64... Kg6 $1 {[%emt 0:01:26]} 65. Rb7 {[%emt 0:00:32]} (65. b7 $14 Kg7 66. Kg4) 65... Rb5 $11 {[%emt 0:00:08] The position is equal.} 66. Ke3 {[%emt 0:00:21] Strongly threatening Kd4.} f5 $1 {[%emt 0:00:29]} 67. Rb8 {[%emt 0:00:17]} fxe4 $1 {[%emt 0:00:55]} 68. Kxe4 {[%emt 0:01:09]} Kf7 {[%emt 0:00:38]} 69. Kd4 {[%emt 0:00:07] Intending Kc4 and mate.} Ke7 {[%emt 0:00:50]} 70. Kc4 {[%emt 0:00:05]} Rb1 {[%emt 0:00:08]} 71. Kc5 {[%emt 0:00:30] Threatening mate with Kc6.} Kd7 {[%emt 0:00:13]} 72. Ra8 {[%emt 0:00:17]} Rb2 {[%emt 0:00:24]} 73. Rh8 {[%emt 0:00:16]} Rb1 {[%emt 0:00:13]} 74. b7 {[%emt 0:01:59]} Rxb7 {[%emt 0:00:27]} 75. Rh7+ {[%emt 0:00:04]} Kc8 {[%emt 0:00:05]} 76. Rxb7 {[%emt 0:00:03]} Kxb7 {[%emt 0:00:04] Black escapes into a draw.  Weighted Error Value: White=0.09 (flawless) /Black=0.08 (flawless)} 1/2-1/2